fUST/lending_fUST_20250817
["ID","MTS","AMOUNT","RATE_DAILY","PERIOD"]
[379905433,1755436244105,-440.0,0.00019452,2]
[379905435,1755436244115,-480.0,0.00019452,2]
[379905437,1755436244125,-983.15,0.00019452,2]
[379905439,1755436244134,-460.0,0.00019452,2]
[379905441,1755436244144,-491.47,0.00019452,2]
[379905443,1755436244154,-480.0,0.00019452,2]
[379905445,1755436244163,-480.0,0.00019452,2]
[379905447,1755436244172,-501.48,0.00019452,2]
[379905449,1755436244182,-1161.97,0.00019452,2]
[379905451,1755436244192,-480.0,0.00019452,2]
[379905453,1755436244201,-480.0,0.00019452,2]
[379905455,1755436244211,-480.0,0.00019452,2]
[379905457,1755436244220,-480.0,0.00019452,2]
[379905459,1755436244229,-690.15,0.00019452,2]
[379905461,1755436244239,-480.0,0.00019452,2]
[379905463,1755436244248,-484.61641326,0.00019452,2]
[379905465,1755436244257,-480.0,0.00019452,2]
[379905467,1755436244267,-301.08531365,0.00019452,2]
[379905469,1755436244277,-480.0,0.00019452,2]
[379905471,1755436244286,-480.0,0.00019452,2]
[379905473,1755436244295,-363.53910817,0.00019452,2]
[379905475,1755436244304,-1159.43,0.00019452,2]
[379905477,1755436244314,-480.0,0.00019452,2]
[379905479,1755436244323,-480.0,0.00019452,2]
[379905503,1755436244539,-480.0,0.00019452,2]
[379905505,1755436244548,-480.0,0.00019452,2]
[379905507,1755436244558,-480.0,0.00019452,2]
[379905509,1755436244568,-480.0,0.00019452,2]
[379905511,1755436244577,-887.18,0.00019452,2]
[379905513,1755436244586,-480.0,0.00019452,2]
[379905515,1755436244596,-480.0,0.00019452,2]
[379905517,1755436244605,-502.75,0.00019452,2]
[379905519,1755436244614,-472.4462754,0.00019452,2]
[379905521,1755436244624,-480.0,0.00019452,2]
[379905523,1755436244633,-5704.58,0.00019452,2]
[379905525,1755436244642,-1508.9,0.00019452,2]
[379905527,1755436244651,-484.78168894,0.00019452,2]
[379905529,1755436244661,-682.83,0.00019452,2]
[379905531,1755436244670,-480.0,0.00019452,2]
[379905533,1755436244679,-480.0,0.00019452,2]
[379905535,1755436244688,-480.0,0.00019452,2]
[379905537,1755436244697,-480.0,0.00019452,2]
[379905539,1755436244707,-480.0,0.00019452,2]
[379905541,1755436244716,-663.73,0.00019452,2]
[379905543,1755436244725,-480.0,0.00019452,2]
[379905545,1755436244734,-480.0,0.00019452,2]
[379905547,1755436244743,-454.52032317,0.00019452,2]
[379905548,1755436244754,-480.0,0.00019452,2]
[379905550,1755436244763,-532.05,0.00019452,2]
[379905552,1755436244772,-480.0,0.00019452,2]
[379905554,1755436244781,-480.0,0.00019452,2]
[379905556,1755436244790,-1164.98,0.00019452,2]
[379905558,1755436244799,-480.0,0.00019452,2]
[379905560,1755436244809,-768.52,0.00019452,2]
[379905562,1755436244821,-480.0,0.00019452,2]
[379905564,1755436244830,-480.0,0.00019452,2]
[379905566,1755436244839,-2615.02,0.00019452,2]
[379905568,1755436244848,-870.14,0.00019452,2]
[379905570,1755436244858,-350.99488762,0.00019452,2]
[379905572,1755436244868,-8378.4,0.00019452,2]
[379905574,1755436244877,-428.35625024,0.00019452,2]
[379905576,1755436244886,-480.0,0.00019452,2]
[379905578,1755436244896,-480.0,0.00019452,2]
[379905581,1755436244906,-480.0,0.00019452,2]
[379905583,1755436244917,-480.0,0.00019452,2]
[379905585,1755436244926,-480.0,0.00019452,2]
[379905587,1755436244935,-480.0,0.00019452,2]
[379905589,1755436244944,-564.23376251,0.00019452,2]
[379905590,1755436244953,-480.0,0.00019452,2]
[379905592,1755436244963,-480.0,0.00019452,2]
[379905594,1755436244972,-480.0,0.00019452,2]
[379905596,1755436244981,-480.0,0.00019452,2]
[379905598,1755436244991,-263.95962831,0.00019452,2]
[379905600,1755436245000,-480.0,0.00019452,2]
[379905602,1755436245009,-1255.06,0.00019452,2]
[379905604,1755436245019,-480.0,0.00019452,2]
[379905606,1755436245028,-480.0,0.00019452,2]
[379905608,1755436245037,-480.0,0.00019452,2]
[379905610,1755436245047,-480.0,0.00019452,2]
[379905612,1755436245056,-2014.13,0.00019452,2]
[379905614,1755436245065,-480.0,0.00019452,2]
[379905616,1755436245074,-480.0,0.00019452,2]
[379905618,1755436245083,-480.0,0.00019452,2]
[379905620,1755436245093,-1669.72,0.00019452,2]
[379905622,1755436245102,-742.79,0.00019452,2]
[379905624,1755436245111,-984.43,0.00019452,2]
[379905627,1755436245121,-480.0,0.00019452,2]
[379905629,1755436245131,-480.0,0.00019452,2]
[379905631,1755436245140,-6762.87,0.00019452,2]
[379905633,1755436245149,-2493.91,0.00019452,2]
[379905635,1755436245159,-480.0,0.00019452,2]
[379905637,1755436245167,-480.0,0.00019452,2]
[379905639,1755436245177,-2003.35,0.00019452,2]
[379905641,1755436245186,-440.0,0.00019452,2]
[379905642,1755436245195,-480.0,0.00019452,2]
[379905645,1755436245204,-480.0,0.00019452,2]
[379905646,1755436245213,-480.0,0.00019452,2]
[379905649,1755436245223,-900.76,0.00019452,2]
[379905651,1755436245232,-545.61,0.00019452,2]
[379905664,1755436245346,-946.28,0.00019452,2]
[379905666,1755436245356,-1171.95,0.00019452,2]
[379905668,1755436245365,-480.0,0.00019452,2]
[379905670,1755436245375,-480.0,0.00019452,2]
[379905672,1755436245384,-480.0,0.00019452,2]
[379905674,1755436245393,-480.0,0.00019452,2]
[379905676,1755436245404,-475.0,0.00019452,2]
[379905678,1755436245413,-480.0,0.00019452,2]
[379905680,1755436245423,-480.0,0.00019452,2]
[379905682,1755436245433,-480.0,0.00019452,2]
[379905684,1755436245443,-751.58,0.00019452,2]
[379905686,1755436245462,-724.39,0.00019452,2]
[379905688,1755436245473,-480.0,0.00019452,2]
[379905690,1755436245483,-480.0,0.00019452,2]
[379905692,1755436245492,-480.0,0.00019452,2]
[379905694,1755436245501,-480.0,0.00019452,2]
[379905695,1755436245510,-480.0,0.00019452,2]
[379905697,1755436245528,-486.77,0.00019452,2]
[379905699,1755436245539,-620.90218032,0.00019452,2]
[379905701,1755436245548,-480.0,0.00019452,2]
[379905703,1755436245558,-480.0,0.00019452,2]
[379905705,1755436245567,-1502.47,0.00019452,2]
[379905707,1755436245576,-659.57,0.00019452,2]
[379905709,1755436245586,-480.0,0.00019452,2]
[379905711,1755436245595,-480.0,0.00019452,2]
[379905713,1755436245604,-480.0,0.00019452,2]
[379905715,1755436245614,-480.0,0.00019452,2]
[379905717,1755436245622,-480.0,0.00019452,2]
[379905719,1755436245631,-480.0,0.00019452,2]
[379905721,1755436245640,-480.0,0.00019452,2]
[379905723,1755436245651,-651.23,0.00019452,2]
[379905725,1755436245660,-480.0,0.00019452,2]
[379905726,1755436245669,-3295.42,0.00019452,2]
[379905728,1755436245678,-480.0,0.00019452,2]
[379905730,1755436245687,-480.0,0.00019452,2]
[379905732,1755436245696,-480.0,0.00019452,2]
[379905734,1755436245705,-555.51,0.00019452,2]
[379905736,1755436245715,-1043.65,0.00019452,2]
[379905738,1755436245724,-494.78239197,0.00019452,2]
[379905740,1755436245734,-480.0,0.00019452,2]
[379905742,1755436245743,-548.61,0.00019452,2]
[379905744,1755436245752,-706.17,0.00019452,2]
[379905746,1755436245762,-500.0,0.00019452,2]
[379905748,1755436245771,-153.0,0.00019452,2]
[379905750,1755436245781,-637.91217323,0.0001946,2]
[379905752,1755436245791,-2924.07878197,0.00019524,2]
[379905754,1755436245800,-200.0,0.00019561,20]
[379905756,1755436245810,-200.0,0.00019561,20]
[379905758,1755436245822,-200.0,0.00019561,20]
[379905760,1755436245831,-200.0,0.00019561,20]
[379905762,1755436245841,-200.0,0.00019561,20]
[379905764,1755436245850,-200.0,0.00019561,20]
[379905766,1755436245859,-200.0,0.00019561,20]
[379905768,1755436245869,-200.0,0.00019561,20]
[379905770,1755436245879,-200.0,0.00019561,20]
[379905772,1755436245889,-200.0,0.00019561,20]
[379905774,1755436245901,-600.0,0.00019561,20]
[379905776,1755436245911,-151.0,0.000196,2]
[379905778,1755436245921,-329.0,0.00019613,2]
[379905780,1755436245931,-168.0,0.00019623,2]
[379905782,1755436245940,-168.0,0.00019689,2]
[379905783,1755436245949,-151.0,0.000197,2]
[379905785,1755436245958,-177.72858975,0.00019721,2]
[379905787,1755436245967,-1000.0,0.00019721,2]
[379905789,1755436245977,-1000.0,0.00019721,2]
[379905791,1755436245987,-500.0,0.00019721,2]
[379905793,1755436245997,-797.77908351,0.00019721,2]
[379905795,1755436246006,-500.0,0.00019725,2]
[379905797,1755436246016,-500.0,0.00019725,2]
[379905799,1755436246025,-500.0,0.00019725,2]
[379905801,1755436246035,-501.06857215,0.00019725,2]
[379905803,1755436246045,-151.0,0.00019726,2]
[379905805,1755436246054,-151.0,0.00019726,2]
[379905807,1755436246063,-500.0,0.00019726,2]
[379905809,1755436246073,-151.0,0.00019726,2]
[379905811,1755436246082,-500.0,0.00019726,2]
[379905813,1755436246092,-500.0,0.00019726,2]
[379905815,1755436246101,-151.0,0.00019726,2]
[379905817,1755436246110,-1771.0,0.00019726,2]
[379905820,1755436246119,-500.0,0.00019726,2]
[379905823,1755436246129,-500.0,0.00019726,2]
[379905826,1755436246138,-248.28210474,0.00019726,2]
[379905829,1755436246148,-500.0,0.00019726,2]
[379905832,1755436246157,-252.64158095,0.00019726,2]
[379905835,1755436246165,-151.65313807,0.00019726,2]
[379905838,1755436246174,-505.36681981,0.00019726,2]
[379905840,1755436246183,-500.0,0.00019726,2]
[379905842,1755436246193,-153.91704026,0.00019726,2]
[379905844,1755436246202,-151.0,0.00019726,2]
[379905846,1755436246211,-151.0,0.00019726,2]
[379905848,1755436246221,-151.0,0.00019726,2]
[379905850,1755436246230,-500.0,0.00019726,2]
[379905852,1755436246240,-274.17273348,0.00019726,2]
[379905854,1755436246249,-151.0,0.00019726,2]
[379905856,1755436246258,-609.32328094,0.00019726,2]
[379905857,1755436246267,-254.77701284,0.00019726,2]
[379905859,1755436246277,-205.03098587,0.00019726,2]
[379905861,1755436246286,-500.0,0.00019726,2]
[379905863,1755436246295,-217.13383679,0.00019726,2]
[379905865,1755436246303,-480.0,0.00019726,2]
[379905867,1755436246313,-480.0,0.00019726,2]
[379905869,1755436246322,-480.0,0.00019726,2]
[379905871,1755436246333,-480.0,0.00019726,2]
[379905873,1755436246342,-480.0,0.00019726,2]
[379905875,1755436246351,-480.0,0.00019726,2]
[379905877,1755436246360,-480.0,0.00019726,2]
[379905879,1755436246368,-480.0,0.00019726,2]
[379905881,1755436246377,-480.0,0.00019726,2]
[379905883,1755436246387,-480.0,0.00019726,2]
[379905885,1755436246396,-480.0,0.00019726,2]
[379905887,1755436246407,-480.0,0.00019726,2]
[379905889,1755436246416,-984.7,0.00019726,2]
[379905891,1755436246425,-480.0,0.00019726,2]
[379905893,1755436246434,-480.0,0.00019726,2]
[379905895,1755436246443,-1005.97,0.00019726,2]
[379905896,1755436246452,-480.0,0.00019726,2]
[379905898,1755436246462,-480.0,0.00019726,2]
[379905900,1755436246471,-260.0,0.00019726,2]
[379905902,1755436246481,-480.0,0.00019726,2]
[379905904,1755436246490,-480.0,0.00019726,2]
[379905906,1755436246500,-480.0,0.00019726,2]
[379905908,1755436246509,-480.0,0.00019726,2]
[379905910,1755436246518,-480.0,0.00019726,2]
[379905912,1755436246527,-480.0,0.00019726,2]
[379905914,1755436246537,-427.2468826,0.00019726,2]
[379905916,1755436246546,-480.0,0.00019726,2]
[379905918,1755436246556,-480.0,0.00019726,2]
[379905920,1755436246565,-480.0,0.00019726,2]
[379905922,1755436246574,-480.0,0.00019726,2]
[379905924,1755436246584,-662.17,0.00019726,2]
[379905926,1755436246593,-480.0,0.00019726,2]
[379905928,1755436246603,-480.0,0.00019726,2]
[379905930,1755436246612,-480.0,0.00019726,2]
[379905932,1755436246621,-480.0,0.00019726,2]
[379905934,1755436246631,-480.0,0.00019726,2]
[379905936,1755436246640,-480.0,0.00019726,2]
[379905938,1755436246650,-480.0,0.00019726,2]
[379905940,1755436246659,-596.96,0.00019726,2]
[379905942,1755436246669,-480.0,0.00019726,2]
[379905944,1755436246678,-480.0,0.00019726,2]
[379905946,1755436246687,-983.15,0.00019726,2]
[379905948,1755436246696,-491.47,0.00019726,2]
[379905950,1755436246705,-473.42667314,0.00019726,2]
[379905952,1755436246714,-480.0,0.00019726,2]
[379905954,1755436246723,-501.48,0.00019726,2]
[379905956,1755436246732,-1161.97,0.00019726,2]
[379905958,1755436246742,-480.0,0.00019726,2]
[379905960,1755436246751,-690.15,0.00019726,2]
[379905962,1755436246761,-480.0,0.00019726,2]
[379905964,1755436246769,-480.0,0.00019726,2]
[379905965,1755436246779,-480.0,0.00019726,2]
[379905967,1755436246788,-1159.43,0.00019726,2]
[379905969,1755436246797,-480.0,0.00019726,2]
[379905971,1755436246805,-480.0,0.00019726,2]
[379905973,1755436246815,-480.0,0.00019726,2]
[379905975,1755436246829,-484.85699865,0.00019726,2]
[379905977,1755436246838,-480.0,0.00019726,2]
[379905979,1755436246847,-887.18,0.00019726,2]
[379905981,1755436246857,-480.0,0.00019726,2]
[379905983,1755436246866,-480.0,0.00019726,2]
[379905985,1755436246875,-502.75,0.00019726,2]
[379905987,1755436246884,-480.0,0.00019726,2]
[379905989,1755436246893,-5704.58,0.00019726,2]
[379905991,1755436246905,-1508.9,0.00019726,2]
[379905993,1755436246914,-682.83,0.00019726,2]
[379905995,1755436246924,-480.0,0.00019726,2]
[379905997,1755436246933,-480.0,0.00019726,2]
[379905999,1755436246942,-480.0,0.00019726,2]
[379906001,1755436246951,-480.0,0.00019726,2]
[379906003,1755436246960,-480.0,0.00019726,2]
[379906005,1755436246969,-663.73,0.00019726,2]
[379906007,1755436246978,-480.0,0.00019726,2]
[379906009,1755436246987,-480.0,0.00019726,2]
[379906011,1755436246996,-601.76111291,0.00019726,2]
[379906013,1755436247005,-532.05,0.00019726,2]
[379906014,1755436247014,-480.0,0.00019726,2]
[379906015,1755436247023,-179.9,0.00019726,2]
[379906016,1755436247032,-1164.98,0.00019726,2]
[379906017,1755436247041,-768.52,0.00019726,2]
[379906018,1755436247050,-480.0,0.00019726,2]
[379906019,1755436247060,-480.0,0.00019726,2]
[379906020,1755436247069,-2615.02,0.00019726,2]
[379906021,1755436247079,-870.14,0.00019726,2]
[379906022,1755436247088,-8378.4,0.00019726,2]
[379906023,1755436247097,-480.0,0.00019726,2]
[379906024,1755436247107,-480.0,0.00019726,2]
[379906025,1755436247116,-480.0,0.00019726,2]
[379906026,1755436247125,-480.0,0.00019726,2]
[379906027,1755436247134,-480.0,0.00019726,2]
[379906028,1755436247143,-480.0,0.00019726,2]
[379906029,1755436247153,-480.0,0.00019726,2]
[379906030,1755436247162,-480.0,0.00019726,2]
[379906031,1755436247172,-1255.06,0.00019726,2]
[379906032,1755436247180,-480.0,0.00019726,2]
[379906033,1755436247189,-480.0,0.00019726,2]
[379906034,1755436247198,-2014.13,0.00019726,2]
[379906035,1755436247208,-453.98976716,0.00019726,2]
[379906036,1755436247217,-480.0,0.00019726,2]
[379906037,1755436247226,-480.0,0.00019726,2]
[379906038,1755436247236,-1669.72,0.00019726,2]
[379906039,1755436247246,-742.79,0.00019726,2]
[379906040,1755436247255,-984.43,0.00019726,2]
[379906041,1755436247264,-471.97695845,0.00019726,2]
[379906042,1755436247273,-480.0,0.00019726,2]
[379906043,1755436247282,-6762.87,0.00019726,2]
[379906044,1755436247291,-2493.91,0.00019726,2]
[379906046,1755436247300,-480.0,0.00019726,2]
[379906047,1755436247309,-2003.35,0.00019726,2]
[379906049,1755436247318,-192.91481767,0.00019726,2]
[379906051,1755436247327,-480.0,0.00019726,2]
[379906053,1755436247336,-900.76,0.00019726,2]
[379906055,1755436247345,-545.61,0.00019726,2]
[379906057,1755436247354,-946.28,0.00019726,2]
[379906059,1755436247363,-1171.95,0.00019726,2]
[379906061,1755436247373,-460.0,0.00019726,2]
[379906063,1755436247382,-480.0,0.00019726,2]
[379906065,1755436247390,-480.0,0.00019726,2]
[379906067,1755436247399,-361.5,0.00019726,2]
[379906069,1755436247409,-480.0,0.00019726,2]
[379906071,1755436247418,-480.0,0.00019726,2]
[379906072,1755436247427,-751.58,0.00019726,2]
[379906085,1755436247535,-724.39,0.00019726,2]
[379906087,1755436247545,-480.0,0.00019726,2]
[379906089,1755436247554,-480.0,0.00019726,2]
[379906091,1755436247564,-480.0,0.00019726,2]
[379906093,1755436247573,-480.0,0.00019726,2]
[379906095,1755436247582,-480.0,0.00019726,2]
[379906097,1755436247591,-486.77,0.00019726,2]
[379906099,1755436247600,-480.0,0.00019726,2]
[379906100,1755436247609,-480.0,0.00019726,2]
[379906102,1755436247619,-1502.47,0.00019726,2]
[379906104,1755436247628,-659.57,0.00019726,2]
[379906106,1755436247637,-480.0,0.00019726,2]
[379906108,1755436247646,-480.0,0.00019726,2]
[379906110,1755436247656,-480.0,0.00019726,2]
[379906112,1755436247665,-508.3856485,0.00019726,2]
[379906114,1755436247675,-651.23,0.00019726,2]
[379906116,1755436247684,-3295.42,0.00019726,2]
[379906118,1755436247693,-480.0,0.00019726,2]
[379906120,1755436247703,-480.0,0.00019726,2]
[379906122,1755436247713,-480.0,0.00019726,2]
[379906124,1755436247721,-555.51,0.00019726,2]
[379906126,1755436247731,-1043.65,0.00019726,2]
[379906128,1755436247739,-548.61,0.00019726,2]
[379906130,1755436247748,-500.0,0.00019726,2]
[379906132,1755436247758,-168.0,0.00019735,2]
[379906134,1755436247766,-2924.07878197,0.00019747,2]
[379906136,1755436247775,-472.1751104,0.00019755,2]
[379906138,1755436247785,-322.57107324,0.00019755,2]
[379906140,1755436247794,-500.0,0.000198,2]
[379906142,1755436247803,-500.0,0.000198,2]
[379906144,1755436247814,-500.0,0.000198,2]
[379906146,1755436247829,-500.0,0.000198,2]
[379906147,1755436247840,-500.0,0.000198,2]
[379906149,1755436247849,-500.0,0.000198,2]
[379906151,1755436247859,-500.0,0.000198,2]
[379906153,1755436247869,-500.0,0.000198,2]
[379906155,1755436247878,-500.0,0.000198,2]
[379906157,1755436247887,-500.0,0.000198,2]
[379906159,1755436247898,-198.31463455,0.000198,2]
[379906161,1755436247907,-500.0,0.000198,2]
[379906163,1755436247916,-500.0,0.000198,2]
[379906165,1755436247925,-151.0,0.000198,2]
[379906167,1755436247934,-600.0,0.00019808,2]
[379906169,1755436247944,-168.0,0.00019811,2]
[379906171,1755436247953,-500.0,0.00019816,2]
[379906173,1755436247962,-500.0,0.00019816,2]
[379906175,1755436247972,-500.0,0.00019816,2]
[379906177,1755436247981,-395.00612635,0.00019817,2]
[379906179,1755436247990,-151.44534131,0.00019835,2]
[379906180,1755436248000,-202.359928,0.00019863,2]
[379906182,1755436248010,-168.0,0.00019881,2]
[379906184,1755436248019,-900.0,0.000199,2]
[379906186,1755436248028,-7143.27844269,0.000199,2]
[379906188,1755436248038,-160.0,0.00019957,3]
[379906191,1755436248050,-528.48506731,0.00019965,2]
[379906192,1755436248059,-215.71995163,0.00019965,2]
[379906194,1755436248068,-12682.46447135,0.00019965,2]
[379906196,1755436248078,-160.0,0.00019965,2]
[379906198,1755436248087,-232.1512529,0.00019965,2]
[379906200,1755436248096,-375.77065697,0.00019965,2]
[379906202,1755436248107,-160.0,0.00019965,2]
[379906204,1755436248117,-417.15472785,0.00019965,2]
[379906206,1755436248126,-160.0,0.00019965,2]
[379906208,1755436248136,-160.0,0.00019965,2]
[379906210,1755436248145,-216.83204348,0.00019965,2]
[379906212,1755436248155,-843.71309931,0.00019965,2]
[379906214,1755436248165,-2924.07878197,0.0001997,2]
[379906216,1755436248173,-160.0,0.00019982,2]
[379906218,1755436248183,-160.0,0.00019982,2]
[379906220,1755436248192,-160.0,0.00019982,2]
[379906222,1755436248201,-160.0,0.00019982,2]
[379906224,1755436248211,-151.0,0.0002,2]
[379906226,1755436248220,-151.0,0.0002,2]
[379906228,1755436248229,-500.0,0.0002,2]
[379906230,1755436248239,-151.0,0.0002,2]
[379906232,1755436248248,-359.0,0.0002,2]
[379906234,1755436248257,-199.90624974,0.0002,2]
[379906236,1755436248266,-151.0,0.0002,2]
[379906238,1755436248275,-1771.0,0.0002,2]
[379906240,1755436248285,-500.0,0.0002,2]
[379906242,1755436248294,-154.5752663,0.0002,2]
[379906243,1755436248306,-560.36733466,0.0002,2]
[379906245,1755436248315,-500.0,0.0002,2]
[379906247,1755436248324,-151.0,0.0002,2]
[379906249,1755436248333,-151.0,0.0002,2]
[379906251,1755436248343,-151.0,0.0002,2]
[379906253,1755436248352,-500.0,0.0002,2]
[379906255,1755436248361,-151.0,0.0002,2]
[379906257,1755436248370,-559.06047334,0.0002,2]
[379906259,1755436248380,-480.0,0.0002,2]
[379906261,1755436248390,-480.0,0.0002,2]
[379906263,1755436248400,-480.0,0.0002,2]
[379906265,1755436248411,-290.34491015,0.0002,2]
[379906267,1755436248421,-480.0,0.0002,2]
[379906269,1755436248431,-480.0,0.0002,2]
[379906271,1755436248441,-480.0,0.0002,2]
[379906273,1755436248462,-480.0,0.0002,2]
[379906275,1755436248481,-480.0,0.0002,2]
[379906277,1755436248510,-480.0,0.0002,2]
[379906280,1755436248525,-151.0,0.0002,2]
[379906282,1755436248535,-480.0,0.0002,2]
[379906284,1755436248545,-984.7,0.0002,2]
[379906285,1755436248554,-586.78874907,0.0002,2]
[379906287,1755436248564,-480.0,0.0002,2]
[379906289,1755436248573,-1005.97,0.0002,2]
[379906291,1755436248583,-480.0,0.0002,2]
[379906293,1755436248592,-480.0,0.0002,2]
[379906295,1755436248601,-480.0,0.0002,2]
[379906297,1755436248611,-480.0,0.0002,2]
[379906299,1755436248620,-480.0,0.0002,2]
[379906301,1755436248629,-480.0,0.0002,2]
[379906303,1755436248639,-510.45,0.0002,2]
[379906305,1755436248648,-662.17,0.0002,2]
[379906307,1755436248657,-480.0,0.0002,2]
[379906309,1755436248667,-484.9731701,0.0002,2]
[379906311,1755436248676,-480.0,0.0002,2]
[379906313,1755436248686,-480.0,0.0002,2]
[379906315,1755436248695,-484.11563837,0.0002,2]
[379906317,1755436248704,-596.96,0.0002,2]
[379906319,1755436248714,-480.0,0.0002,2]
[379906321,1755436248724,-480.0,0.0002,2]
[379906323,1755436248733,-983.15,0.0002,2]
[379906325,1755436248742,-491.47,0.0002,2]
[379906327,1755436248752,-480.0,0.0002,2]
[379906329,1755436248761,-501.48,0.0002,2]
[379906331,1755436248770,-1161.97,0.0002,2]
[379906333,1755436248780,-480.0,0.0002,2]
[379906335,1755436248789,-151.0,0.0002,2]
[379906337,1755436248799,-690.15,0.0002,2]
[379906339,1755436248808,-480.0,0.0002,2]
[379906341,1755436248819,-480.0,0.0002,2]
[379906343,1755436248829,-480.0,0.0002,2]
[379906345,1755436248838,-1159.43,0.0002,2]
[379906346,1755436248847,-480.0,0.0002,2]
[379906348,1755436248857,-480.0,0.0002,2]
[379906350,1755436248867,-480.0,0.0002,2]
[379906352,1755436248876,-480.0,0.0002,2]
[379906354,1755436248885,-887.18,0.0002,2]
[379906356,1755436248896,-480.0,0.0002,2]
[379906358,1755436248907,-502.75,0.0002,2]
[379906360,1755436248916,-480.0,0.0002,2]
[379906362,1755436248926,-440.0,0.0002,2]
[379906364,1755436248935,-5704.58,0.0002,2]
[379906366,1755436248944,-1508.9,0.0002,2]
[379906368,1755436248954,-682.83,0.0002,2]
[379906370,1755436248963,-480.0,0.0002,2]
[379906372,1755436248973,-480.0,0.0002,2]
[379906374,1755436248982,-480.0,0.0002,2]
[379906376,1755436248991,-480.0,0.0002,2]
[379906378,1755436249002,-480.0,0.0002,2]
[379906380,1755436249011,-663.73,0.0002,2]
[379906382,1755436249020,-480.0,0.0002,2]
[379906384,1755436249030,-480.0,0.0002,2]
[379906386,1755436249039,-532.05,0.0002,2]
[379906388,1755436249049,-525.17,0.0002,2]
[379906390,1755436249058,-1164.98,0.0002,2]
[379906392,1755436249067,-768.52,0.0002,2]
[379906394,1755436249076,-480.0,0.0002,2]
[379906396,1755436249085,-480.0,0.0002,2]
[379906398,1755436249095,-2615.02,0.0002,2]
[379906400,1755436249105,-870.14,0.0002,2]
[379906402,1755436249114,-8378.4,0.0002,2]
[379906404,1755436249123,-284.98505462,0.0002,2]
[379906406,1755436249132,-480.0,0.0002,2]
[379906407,1755436249141,-480.0,0.0002,2]
[379906410,1755436249151,-480.0,0.0002,2]
[379906412,1755436249161,-480.0,0.0002,2]
[379906413,1755436249170,-480.0,0.0002,2]
[379906415,1755436249179,-393.20855986,0.0002,2]
[379906417,1755436249189,-480.0,0.0002,2]
[379906419,1755436249199,-480.0,0.0002,2]
[379906421,1755436249208,-324.32475206,0.0002,2]
[379906423,1755436249217,-1255.06,0.0002,2]
[379906425,1755436249227,-2014.13,0.0002,2]
[379906427,1755436249237,-1669.72,0.0002,2]
[379906429,1755436249246,-742.79,0.0002,2]
[379906431,1755436249256,-984.43,0.0002,2]
[379906433,1755436249266,-6762.87,0.0002,2]
[379906435,1755436249275,-2493.91,0.0002,2]
[379906437,1755436249285,-480.0,0.0002,2]